bitfinex/quotes_BTCUSD_20220212
["timestamp","ask_amount","ask_price","bid_price","bid_amount"]
[1644690966375,0.2507217,42909.0,42906.0,0.0006096]
[1644690966578,0.69278685,42909.0,42906.0,0.0006096]
[1644690966779,0.00121919,42904.0,42893.0,0.05]
[1644690966976,0.00121919,42904.0,42894.0,0.5]
[1644690966980,0.0523,42903.0,42894.0,0.5]
[1644690967430,0.26142147,42901.0,42891.0,0.1598]
[1644690967625,0.07649913,42896.0,42891.0,0.1598]
[1644690967824,0.0523,42895.0,42890.0,0.5043]
[1644690968028,0.0523,42895.0,42887.0,0.25631296]
[1644690968225,0.0523,42895.0,42886.0,0.1689077]
[1644690968627,0.0523,42895.0,42885.0,0.3313077]
[1644690968827,0.0523,42895.0,42888.0,0.00060976]
[1644690969827,0.0523,42895.0,42885.0,0.1624]
[1644690970028,0.25872455,42894.0,42889.0,0.00060976]
[1644690971031,0.33141663,42895.0,42885.0,0.31251541]
[1644690971273,0.0523,42895.0,42889.0,0.00060976]
[1644690972173,0.0523,42895.0,42885.0,0.31251541]
[1644690972375,0.0523,42895.0,42890.0,0.00060975]
[1644690973373,0.0523,42895.0,42885.0,0.31251541]
[1644690973573,0.0523,42895.0,42890.0,0.00060975]
[1644690973774,0.327075,42894.0,42890.0,0.00060975]
[1644690974173,0.2778409,42893.0,42890.0,0.00060975]
[1644690974374,0.327075,42892.0,42890.0,0.00060975]
[1644690974574,0.327075,42892.0,42885.0,0.31251541]
[1644690974575,0.379375,42892.0,42885.0,0.31251541]
[1644690974774,0.0715876,42888.0,42885.0,0.15011541]
[1644690975028,0.0715876,42888.0,42884.0,0.5698]
[1644690975229,0.0715876,42888.0,42883.0,0.058294]
[1644690975833,0.0715876,42888.0,42880.0,0.378785]
[1644690976029,0.0715876,42888.0,42883.0,0.00060981]
[1644690976229,0.22443913,42890.0,42883.0,0.00060981]
[1644690976429,0.22443913,42890.0,42883.0,0.09388281]
[1644690976829,0.0523,42892.0,42883.0,0.09388281]
[1644690977032,0.0523,42892.0,42883.0,0.093273]
[1644690977231,0.26087647,42892.0,42884.0,0.0006098]
[1644690977832,0.06889844,42890.0,42884.0,0.0006098]
[1644690978337,0.06889844,42890.0,42885.0,0.0006098]
[1644690979376,0.06889844,42890.0,42884.0,0.058297]
[1644690979574,0.06889844,42890.0,42885.0,0.00060979]
[1644690979976,0.327075,42889.0,42885.0,0.00060979]
[1644690980175,0.06889844,42890.0,42885.0,0.00060979]
[1644690980376,0.327075,42889.0,42885.0,0.00060979]
[1644690980576,0.06889844,42890.0,42883.0,0.058296]
[1644690981978,0.12119844,42890.0,42883.0,0.058296]
[1644690983426,0.27669584,42889.0,42880.0,0.197182]
[1644690983627,0.327075,42888.0,42880.0,0.197182]
[1644690983824,0.12119844,42890.0,42880.0,0.197182]
[1644690984228,0.21856235,42884.0,42880.0,0.197182]
[1644690984424,0.21856235,42884.0,42883.0,0.00060931]
[1644690985425,0.21856235,42884.0,42878.0,0.11682958]
[1644690985625,0.21856235,42884.0,42881.0,0.00060933]
[1644690986675,0.08741181,42883.0,42878.0,0.00023758]
[1644690986879,0.0523,42885.0,42880.0,0.00060934]
[1644690987377,0.0523,42885.0,42881.0,0.0583]
[1644690987977,0.13771735,42885.0,42881.0,0.05890933]
[1644690988177,0.13771735,42885.0,42881.0,0.00060933]
[1644690988979,0.13771735,42885.0,42878.0,0.00023758]
[1644690989177,0.13771735,42885.0,42881.0,0.00060933]
[1644690989935,0.327075,42884.0,42881.0,0.00060933]
[1644690990133,0.08551401,42885.0,42878.0,0.00023758]
[1644690990332,0.08551401,42885.0,42881.0,0.00060933]
[1644690990530,0.08551401,42885.0,42876.0,0.09244891]
[1644690990732,0.0523,42884.0,42876.0,0.09244891]
[1644690990931,0.0523,42884.0,42876.0,0.09268649]
[1644690991132,0.051,42884.0,42876.0,0.09268649]
[1644690992831,0.051,42884.0,42878.0,0.00040599]
[1644690993879,0.051,42884.0,42877.0,0.00023758]
[1644690994076,0.051,42884.0,42879.0,0.00040598]
[1644690994879,0.327075,42882.0,42879.0,0.00040598]
[1644690995078,0.3101431,42883.0,42875.0,0.18766]
[1644690995278,0.2110454,42882.0,42879.0,0.00060935]
[1644690995877,0.2060454,42882.0,42879.0,0.00060935]
[1644690996078,0.327075,42881.0,42879.0,0.00060935]
[1644690996378,0.2060454,42882.0,42878.0,0.00057301]
[1644690996580,0.327075,42881.0,42878.0,0.00057301]
[1644690996779,0.051,42884.0,42878.0,0.00057301]
[1644690996978,0.327075,42882.0,42878.0,0.00057301]
[1644690997178,0.327075,42883.0,42878.0,0.00057301]
[1644690997424,0.051,42884.0,42876.0,0.00023758]
[1644690997625,0.051,42884.0,42878.0,0.00057302]
[1644690998625,0.051,42884.0,42876.0,0.00023758]
[1644690998825,0.051,42884.0,42879.0,0.00057301]
[1644690999128,0.327075,42883.0,42879.0,0.00057301]
[1644690999726,0.327075,42883.0,42876.0,0.00023758]
[1644690999926,0.051,42884.0,42879.0,0.00057301]
[1644691001027,0.051,42884.0,42877.0,0.058305]
[1644691001277,0.051,42884.0,42879.0,0.00057572]
[1644691001476,0.327075,42883.0,42879.0,0.00057572]
[1644691001779,0.22292526,42889.0,42883.0,0.01170161]
[1644691001976,0.00226848,42894.0,42883.0,0.01170161]
[1644691002176,0.5234,42897.0,42883.0,0.01170161]
[1644691002177,0.05,42896.0,42884.0,0.33305847]
[1644691002376,0.6234,42897.0,42886.0,0.327048]
[1644691002578,0.00226868,42895.0,42886.0,0.327048]
[1644691002777,0.00226868,42895.0,42886.0,0.427048]
[1644691002976,0.00226868,42895.0,42886.0,0.216575]
[1644691003377,0.19997527,42896.0,42886.0,0.116575]
[1644691003778,0.20054248,42896.0,42886.0,0.116575]
[1644691004579,0.19997527,42896.0,42886.0,0.116575]
[1644691004779,0.20054186,42896.0,42886.0,0.116575]
[1644691005832,0.19997527,42896.0,42886.0,0.116575]
[1644691006031,0.19997527,42896.0,42887.0,0.26461652]
[1644691006032,0.20054186,42896.0,42887.0,0.26461652]
[1644691006431,0.20054186,42896.0,42888.0,0.327048]
[1644691006632,0.20054186,42896.0,42887.0,0.327048]
[1644691007036,0.19997527,42896.0,42887.0,0.327048]
[1644691007231,0.20054186,42896.0,42888.0,0.327048]
[1644691007432,0.20054186,42896.0,42888.0,0.1]
[1644691007731,0.20054186,42896.0,42886.0,0.116575]
[1644691008132,0.19997527,42896.0,42884.0,0.37211511]
[1644691008332,0.19997527,42896.0,42884.0,0.1]
[1644691008534,0.27880667,42895.0,42884.0,0.1]
[1644691008778,0.23801965,42888.0,42884.0,0.1]
[1644691009077,0.23801965,42888.0,42885.0,0.327048]
[1644691009277,0.23801965,42888.0,42885.0,0.427048]
[1644691009479,0.23801965,42888.0,42886.0,0.327048]
[1644691010177,0.00226634,42895.0,42886.0,0.327048]
[1644691010378,0.00226634,42895.0,42885.0,0.1]
[1644691010578,0.19787916,42905.0,42884.0,0.058294]
[1644691010779,0.00056663,42896.0,42884.0,0.058294]
[1644691011179,0.24871361,42895.0,42884.0,0.058294]
[1644691011580,0.31683336,42895.0,42885.0,0.327048]
[1644691011779,0.31683336,42895.0,42885.0,0.427048]
[1644691011979,0.31683336,42895.0,42885.0,0.1]
[1644691012180,0.59940482,42895.0,42885.0,0.1]
[1644691012438,0.59489442,42895.0,42885.0,0.1]
[1644691013032,0.59489442,42895.0,42884.0,0.11682455]
[1644691013232,0.5950688,42895.0,42884.0,0.11682455]
[1644691013631,0.59755231,42895.0,42884.0,0.11682455]
[1644691015034,0.07450428,42886.0,42884.0,0.00023755]
[1644691015232,0.07450428,42886.0,42883.0,0.01170161]
[1644691020150,0.327048,42885.0,42883.0,0.01170161]
[1644691020349,0.07450428,42886.0,42883.0,0.01170161]
[1644691022047,0.27898129,42887.0,42883.0,0.01170161]
[1644691022751,0.27953769,42888.0,42883.0,0.01170161]
[1644691022950,0.27799049,42891.0,42884.0,0.362023]
[1644691023149,0.28936495,42894.0,42884.0,0.034975]
[1644691023549,0.06925591,42892.0,42884.0,0.034975]
[1644691023778,0.20665525,42889.0,42884.0,0.034975]
[1644691023978,0.20665525,42889.0,42885.0,0.058291]
[1644691024378,0.20665525,42889.0,42883.0,0.01193916]
[1644691025080,0.20665525,42889.0,42883.0,0.07023416]
[1644691025283,0.29028224,42891.0,42883.0,0.07023416]
[1644691027283,0.23517339,42890.0,42883.0,0.07023416]
[1644691027945,0.23517339,42890.0,42883.0,0.01193916]
[1644691030242,0.23243614,42890.0,42883.0,0.01193916]
[1644691031777,0.29028224,42891.0,42883.0,0.01193916]
[1644691031979,0.00226634,42895.0,42883.0,0.07023416]
[1644691032177,0.18611873,42902.0,42883.0,0.07023416]
[1644691032178,0.1648,42896.0,42883.0,0.07023416]
[1644691032577,0.16763292,42896.0,42883.0,0.07023416]
[1644691032778,0.65792236,42896.0,42883.0,0.07023416]
[1644691033380,0.65508944,42896.0,42883.0,0.07023416]
[1644691033782,0.06704809,42891.0,42883.0,0.07023416]
[1644691034185,0.06122056,42891.0,42883.0,0.05840355]
[1644691035030,0.23830831,42889.0,42883.0,0.05840355]
[1644691035431,0.06122056,42891.0,42883.0,0.05840355]
[1644691036730,0.20306021,42893.0,42883.0,0.05840355]
[1644691038331,0.20306021,42893.0,42884.0,0.327048]
[1644691038775,0.20306021,42893.0,42883.0,0.05840355]
[1644691039578,0.2775063,42892.0,42883.0,0.05840355]
[1644691040781,0.08089831,42888.0,42883.0,0.00023755]
[1644691040979,0.08089831,42888.0,42882.0,0.05853455]
[1644691041778,0.23943986,42886.0,42882.0,0.05853455]
[1644691041979,0.327048,42885.0,42881.0,0.00023755]
[1644691042179,0.327048,42885.0,42879.0,0.00057556]
[1644691042180,0.23943986,42886.0,42880.0,0.00023755]
[1644691042437,0.23943986,42886.0,42879.0,0.00057556]
[1644691042438,0.327048,42885.0,42879.0,0.00057556]
[1644691042631,0.23943986,42886.0,42879.0,0.00057556]
[1644691043029,0.23943986,42886.0,42876.0,0.05854155]
[1644691043229,0.23943986,42886.0,42879.0,0.00057555]
[1644691043629,0.23943986,42886.0,42879.0,0.0008131]
[1644691044230,0.23943986,42886.0,42877.0,0.00023755]
[1644691044430,0.23943986,42886.0,42879.0,0.0005629]
[1644691044631,0.06405423,42881.0,42879.0,0.0005629]
[1644691045231,0.23943986,42886.0,42879.0,0.0005629]
[1644691045431,0.23943986,42886.0,42878.0,0.034981]
[1644691045631,0.23943986,42886.0,42878.0,0.0355439]
[1644691046581,0.23943986,42886.0,42878.0,0.034981]
[1644691046780,0.23943986,42886.0,42879.0,0.0005629]
[1644691046980,0.23943986,42886.0,42879.0,0.00080045]
[1644691047180,0.08861036,42885.0,42879.0,0.00080045]
[1644691047383,0.32354469,42888.0,42879.0,0.00080045]
[1644691047384,0.1627,42891.0,42879.0,0.00080045]
[1644691047385,0.1627,42891.0,42879.0,0.27574449]
[1644691047582,0.1627,42891.0,42881.0,0.058298]
[1644691047782,0.6071,42895.0,42880.0,0.00023755]
[1644691047982,0.5071,42895.0,42879.0,0.2946301]
[1644691048185,0.00213612,42894.0,42879.0,0.00077177]
[1644691048385,0.08467328,42886.0,42879.0,0.26721421]
[1644691048586,0.08193603,42886.0,42879.0,0.26721421]
[1644691048783,0.08193603,42886.0,42880.0,0.327048]
[1644691048983,0.08193603,42886.0,42880.0,0.32728555]
[1644691049183,0.08193603,42886.0,42880.0,0.00023755]
[1644691049383,0.08193603,42886.0,42879.0,0.32551431]
[1644691049585,0.08193603,42886.0,42879.0,0.05907187]
[1644691050030,0.08193603,42886.0,42880.0,0.27467449]
[1644691050230,0.44785993,42891.0,42880.0,0.27491204]
[1644691050430,0.16848032,42894.0,42880.0,0.27491204]
[1644691050631,0.16848032,42894.0,42883.0,0.058295]
[1644691050932,0.16848032,42894.0,42884.0,0.71330613]
[1644691051134,0.00068032,42894.0,42884.0,0.71330613]
[1644691051434,0.70335398,42897.0,42884.0,0.71330613]
[1644691051631,0.08084156,42895.0,42887.0,0.22684026]
[1644691051831,0.08084156,42895.0,42887.0,0.28513026]
[1644691052431,0.08084156,42895.0,42887.0,0.05829]
[1644691053434,0.0005583,42896.0,42887.0,0.05829]
[1644691053881,0.29787916,42899.0,42887.0,0.05829]
[1644691054081,0.0005583,42896.0,42887.0,0.05829]
[1644691054981,0.19787916,42899.0,42887.0,0.05829]
[1644691055382,0.07827581,42896.0,42887.0,0.05829]
[1644691056185,0.07770979,42896.0,42888.0,0.2763992]
[1644691056596,0.07825145,42896.0,42888.0,0.2763992]
[1644691057453,0.07770979,42896.0,42888.0,0.2763992]
[1644691061288,0.07770979,42896.0,42888.0,0.2472002]
[1644691061289,0.07827809,42896.0,42888.0,0.2472002]
[1644691061583,0.0005683,42896.0,42889.0,0.379348]
[1644691061782,0.0005683,42896.0,42892.0,0.05]
[1644691061983,0.0005683,42896.0,42893.0,0.379348]
[1644691062385,0.00019515,42903.0,42895.0,0.327048]
[1644691062582,0.00082658,42903.0,42898.0,0.327048]
[1644691062883,0.00082658,42903.0,42899.0,0.327048]
[1644691063282,0.00082658,42903.0,42900.0,0.327048]
[1644691063482,0.00121919,42904.0,42900.0,0.327048]
[1644691063682,0.00020668,42903.0,42900.0,0.327048]
[1644691064682,0.00121919,42904.0,42900.0,0.327048]
[1644691064937,0.00142587,42904.0,42900.0,0.327048]
[1644691065538,0.08503861,42904.0,42899.0,0.327048]
[1644691065939,0.08483193,42904.0,42899.0,0.327048]
[1644691066141,0.08544343,42904.0,42899.0,0.327048]
[1644691066442,0.08270618,42904.0,42899.0,0.327048]
[1644691066740,0.0006115,42904.0,42899.0,0.327048]
[1644691066941,0.0006115,42904.0,42900.0,0.2999082]
[1644691067141,0.00019515,42905.0,42901.0,0.362009]
[1644691067341,0.5181,42917.0,42901.0,0.362009]
[1644691067342,0.0006115,42904.0,42903.0,0.327048]
[1644691067540,0.0006115,42904.0,42903.0,0.68843755]
[1644691067740,0.06410103,42904.0,42903.0,0.36138955]
[1644691067940,0.0006115,42904.0,42903.0,0.68843755]
[1644691068140,0.0006115,42904.0,42903.0,0.0523]
[1644691068341,0.00019515,42908.0,42903.0,0.0523]
[1644691068541,0.00019515,42908.0,42900.0,0.30278793]
[1644691068542,0.10459999,42902.0,42900.0,0.30278793]
[1644691068781,0.10459999,42902.0,42901.0,0.379348]
[1644691069584,0.10459999,42902.0,42901.0,0.65918392]
[1644691070481,0.10459999,42902.0,42901.0,0.379348]
[1644691071884,0.10459999,42902.0,42901.0,0.0523]
[1644691073141,0.10459999,42902.0,42897.0,0.1477]
[1644691073142,0.43164799,42902.0,42897.0,0.1477]
[1644691073336,0.10459999,42902.0,42893.0,0.116564]
[1644691073535,0.08260378,42895.0,42893.0,0.116564]
[1644691075337,0.0005819,42896.0,42893.0,0.116564]
[1644691075538,0.10459999,42902.0,42894.0,0.27238175]
[1644691075740,0.0005819,42896.0,42894.0,0.27238175]
[1644691075938,0.0005819,42896.0,42893.0,0.116564]
[1644691076381,0.23991276,42896.0,42893.0,0.116564]
[1644691076783,0.23933086,42896.0,42893.0,0.116564]
[1644691076981,0.23933086,42896.0,42894.0,0.116559]
[1644691078581,0.3164638,42896.0,42894.0,0.116559]
[1644691078782,0.3164638,42896.0,42889.0,0.418893]
[1644691079082,0.3164638,42896.0,42889.0,0.058293]
[1644691079284,0.31703459,42896.0,42889.0,0.058293]
[1644691080334,0.3164638,42896.0,42889.0,0.058293]
[1644691080534,0.31703534,42896.0,42889.0,0.058293]
[1644691081635,0.3164638,42896.0,42889.0,0.058293]
[1644691081835,0.31703534,42896.0,42889.0,0.058293]
[1644691082633,0.3164638,42896.0,42889.0,0.058293]
[1644691082933,0.31703534,42896.0,42889.0,0.058293]
[1644691083534,0.59415538,42896.0,42887.0,0.1547]
[1644691083787,0.327048,42895.0,42887.0,0.1547]
[1644691084390,0.46203529,42896.0,42887.0,0.1547]
[1644691084588,0.07221639,42888.0,42887.0,0.1547]
[1644691084787,0.07221639,42888.0,42885.0,0.174879]
[1644691084989,0.23490235,42896.0,42885.0,0.174879]
[1644691085188,0.23490235,42896.0,42887.0,0.327048]
[1644691085189,0.23433086,42896.0,42887.0,0.327048]
[1644691085387,0.00228589,42895.0,42889.0,0.069942]
[1644691086189,0.00228589,42895.0,42889.0,0.128228]
[1644691086388,0.29593032,42896.0,42889.0,0.128228]
[1644691086588,0.29650181,42896.0,42889.0,0.128228]
[1644691087188,0.0649082,42896.0,42889.0,0.128228]
[1644691087438,0.15689999,42902.0,42889.0,0.128228]
[1644691087634,0.10459999,42902.0,42893.0,0.116561]
[1644691087834,0.0005715,42896.0,42895.0,0.058276]
[1644691088032,0.0005715,42896.0,42895.0,0.66394672]
[1644691088236,0.0005715,42896.0,42895.0,0.385288]
[1644691088533,0.0005715,42896.0,42895.0,0.535288]
[1644691088732,0.08386766,42898.0,42895.0,0.208276]
[1644691088933,0.00057149,42898.0,42895.0,0.058276]
[1644691089332,0.00057149,42898.0,42896.0,0.327012]
[1644691089535,0.00057149,42898.0,42895.0,0.058276]
[1644691089933,0.10459999,42902.0,42895.0,0.058276]
[1644691090133,0.07649839,42899.0,42895.0,0.058276]
[1644691090534,0.07649839,42899.0,42896.0,0.327012]
[1644691090937,0.07649839,42899.0,42895.0,0.058276]
[1644691091180,0.07592691,42899.0,42895.0,0.058276]
[1644691092384,0.07592691,42899.0,42896.0,0.327012]
[1644691092583,0.07592691,42899.0,42895.0,0.058276]
[1644691092584,0.07649838,42899.0,42895.0,0.058276]
[1644691092785,0.07649838,42899.0,42896.0,0.327012]
[1644691092984,0.00057147,42899.0,42896.0,0.59630206]
[1644691093185,0.00057147,42899.0,42897.0,0.327012]
[1644691093584,0.10459999,42902.0,42897.0,0.327012]
[1644691093784,0.00020492,42900.0,42897.0,0.327012]
[1644691094788,0.10459999,42902.0,42897.0,0.327012]
[1644691095035,0.00057146,42901.0,42897.0,0.327012]
[1644691096035,0.191207,42902.0,42897.0,0.327012]
[1644691096235,0.00057145,42901.0,42897.0,0.327012]
[1644691098437,0.10459999,42902.0,42897.0,0.327012]
[1644691098689,0.00057093,42901.0,42897.0,0.327012]
[1644691099489,0.10459999,42902.0,42897.0,0.327012]
[1644691099689,0.00057093,42901.0,42897.0,0.327012]
[1644691100789,0.17706638,42902.0,42897.0,0.327012]
[1644691100990,0.00057093,42901.0,42897.0,0.327012]
[1644691101890,0.10459999,42902.0,42897.0,0.327012]
[1644691102290,0.00057097,42901.0,42897.0,0.327012]
[1644691103142,0.10459999,42902.0,42898.0,0.0523]
[1644691103339,0.00057097,42901.0,42900.0,0.058274]
[1644691103540,0.00057097,42901.0,42900.0,0.420251]
[1644691104440,0.10459999,42902.0,42901.0,0.326979]
[1644691105943,0.10459999,42902.0,42900.0,0.093239]
[1644691106386,0.10459999,42902.0,42901.0,0.326979]
[1644691106586,0.10459999,42902.0,42900.0,0.093239]
[1644691108189,0.10459999,42902.0,42900.0,0.058274]
[1644691109188,0.3277596,42902.0,42900.0,0.058274]
[1644691109389,0.3277596,42902.0,42898.0,0.058274]
[1644691109588,0.08786405,42899.0,42898.0,0.116554]
[1644691111042,0.08786405,42899.0,42898.0,0.443533]
[1644691111242,0.00057097,42901.0,42898.0,0.443533]
[1644691111444,0.00057097,42901.0,42898.0,0.116554]
[1644691111642,0.10459999,42902.0,42898.0,0.116554]
[1644691111844,0.10517095,42902.0,42898.0,0.116554]
[1644691112446,0.17112427,42902.0,42898.0,0.116554]
[1644691112645,0.17055331,42902.0,42898.0,0.116554]
[1644691113146,0.17055331,42902.0,42887.0,0.108293]
[1644691113147,0.349662,42896.0,42887.0,0.108293]
[1644691113345,0.349662,42896.0,42889.0,0.28043657]
[1644691113546,0.349662,42896.0,42890.0,0.326979]
[1644691113792,0.24179421,42891.0,42889.0,0.1162]
[1644691113991,0.31515037,42891.0,42889.0,0.1162]
[1644691114191,0.31515037,42891.0,42887.0,0.058293]
[1644691114592,0.31515037,42891.0,42889.0,0.326979]
[1644691114794,0.31515037,42891.0,42887.0,0.058293]
[1644691114992,0.35023301,42896.0,42888.0,0.069943]
[1644691115294,0.4998669,42896.0,42891.0,0.326979]
[1644691115498,0.18139839,42904.0,42895.0,0.05]
[1644691115693,0.09448581,42918.0,42895.0,0.05]
[1644691115694,0.18139839,42903.0,42900.0,0.326979]
[1644691115894,0.0001959,42905.0,42903.0,0.326979]
[1644691116093,0.0001959,42907.0,42905.0,0.326979]
[1644691116295,0.0001959,42907.0,42904.0,2.355012]
[1644691116296,0.23745393,42920.0,42904.0,2.355012]
[1644691116297,0.0001959,42912.0,42907.0,0.326979]
[1644691116493,0.0001959,42912.0,42906.0,1.0055]
[1644691116494,0.0001959,42916.0,42912.0,0.326979]
[1644691116693,0.0001959,42916.0,42908.0,0.0523]
[1644691116694,0.0001959,42919.0,42915.0,0.6532]
[1644691116894,0.0001959,42919.0,42900.0,0.3851]
[1644691116895,0.376979,42918.0,42900.0,0.3851]
[1644691117092,0.71121525,42913.0,42900.0,0.6851]
[1644691117294,0.18563552,42910.0,42901.0,0.3]
[1644691117544,0.29508252,42909.0,42900.0,0.18028259]
[1644691117745,0.06581512,42902.0,42901.0,0.326979]
[1644691118148,0.06581512,42902.0,42899.0,0.18028259]
[1644691118344,0.0523,42901.0,42899.0,0.18028259]
[1644691118543,0.0523,42901.0,42897.0,0.18028259]
[1644691118842,0.0523,42901.0,42892.0,0.3]
[1644691119043,0.0523,42901.0,42893.0,0.326979]
[1644691119244,0.0523,42901.0,42893.0,0.44354]
[1644691119443,0.0523,42901.0,42893.0,0.116561]
[1644691120246,0.0523,42901.0,42893.0,0.11696924]
[1644691120443,0.0677145,42894.0,42893.0,0.11696924]
[1644691120649,0.0523,42894.0,42893.0,0.11696924]
[1644691120845,0.0523,42894.0,42893.0,0.44394824]
[1644691121291,0.0523,42894.0,42893.0,0.44354]
[1644691122090,0.24085941,42902.0,42893.0,0.71509172]
[1644691122291,0.06946969,42897.0,42893.0,0.42308272]
[1644691122491,0.11616969,42897.0,42894.0,0.326979]
[1644691122691,0.11616969,42897.0,42895.0,0.05828]
[1644691122891,0.00061193,42899.0,42896.0,0.58901012]
[1644691123692,0.0001959,42905.0,42896.0,0.58901012]
[1644691123897,0.00061195,42900.0,42896.0,0.62397512]
[1644691124095,0.00061195,42900.0,42898.0,0.058278]
[1644691124292,0.00061195,42900.0,42899.0,0.443522]
[1644691124693,0.0001959,42907.0,42899.0,0.443522]
[1644691124956,0.0001959,42905.0,42900.0,0.034964]
[1644691125146,0.0001959,42910.0,42901.0,0.326979]
[1644691125348,0.08020767,42905.0,42902.0,0.058273]
[1644691125547,0.08020767,42905.0,42903.0,0.326979]
[1644691126047,0.08020767,42905.0,42902.0,0.058273]
[1644691126247,0.08020767,42905.0,42903.0,0.058272]
[1644691126448,0.08020767,42905.0,42902.0,0.058273]
[1644691128988,0.08020767,42905.0,42903.0,0.326979]
[1644691129389,0.08020767,42905.0,42900.0,0.034964]
[1644691129991,0.08020767,42905.0,42900.0,0.093239]
[1644691130790,0.08020767,42905.0,42902.0,0.326979]
[1644691130994,0.08081995,42905.0,42902.0,0.38525]
[1644691131891,0.08020767,42905.0,42902.0,0.38525]
[1644691132937,0.08020767,42905.0,42902.0,0.058271]
[1644691134439,0.08020767,42905.0,42900.0,0.093239]
[1644691134637,0.08020767,42905.0,42902.0,0.326979]
[1644691135138,0.00061227,42906.0,42903.0,0.326979]
[1644691135537,0.0001959,42911.0,42903.0,0.326979]
[1644691135737,0.22989863,42912.0,42903.0,0.326979]
[1644691135738,0.00061226,42907.0,42903.0,0.326979]
[1644691136191,0.00061226,42907.0,42904.0,0.2639427]
[1644691136390,0.00061226,42907.0,42905.0,0.326979]
[1644691136590,0.06467835,42906.0,42905.0,0.326979]
[1644691137493,0.06467835,42906.0,42905.0,0.443523]
[1644691137893,0.0001959,42912.0,42905.0,0.443523]
[1644691138092,0.0001959,42910.0,42905.0,0.116544]
[1644691138293,0.00020424,42908.0,42906.0,0.59889843]
[1644691138493,0.66121525,42913.0,42907.0,0.26414113]
[1644691138698,0.66121525,42913.0,42909.0,0.058264]
[1644691138896,0.32401156,42920.0,42910.0,0.626979]
[1644691138897,0.001,42920.0,42910.0,0.626979]
[1644691139095,0.001,42920.0,42912.0,0.244675]
[1644691139295,0.07045617,42915.0,42912.0,0.244675]
[1644691139494,0.07045617,42915.0,42913.0,0.326979]
[1644691139694,0.07045617,42915.0,42913.0,0.33298629]
[1644691139945,0.07045617,42915.0,42914.0,0.058258]
[1644691142235,0.26994658,42915.0,42914.0,0.058258]
[1644691143239,0.26994658,42915.0,42912.0,0.12815901]
[1644691143896,0.26994658,42915.0,42913.0,0.326979]
[1644691144094,0.07045617,42915.0,42914.0,0.058258]
[1644691144496,0.07045617,42915.0,42914.0,0.385237]
[1644691144696,0.07045617,42915.0,42914.0,0.058258]
[1644691145096,0.00061225,42916.0,42914.0,0.058258]
[1644691145298,0.001,42920.0,42914.0,0.058258]
[1644691145496,0.00061225,42917.0,42914.0,0.058258]
[1644691145696,0.00061225,42917.0,42915.0,0.326979]
[1644691146097,0.00061225,42917.0,42914.0,0.058258]
[1644691146502,0.07529639,42916.0,42914.0,0.058258]
[1644691147101,0.00061224,42918.0,42914.0,0.058258]
[1644691147539,0.001,42920.0,42917.0,0.326979]
[1644691147738,0.001,42920.0,42917.0,0.174774]
[1644691147941,0.00061224,42918.0,42917.0,0.501753]
[1644691148137,0.00061224,42918.0,42917.0,0.174774]
[1644691148838,0.08032643,42919.0,42917.0,0.174774]
[1644691151042,0.08032643,42919.0,42917.0,0.116516]
[1644691151287,0.08032643,42919.0,42916.0,0.116516]
[1644691151690,0.21911695,42917.0,42916.0,0.116516]
[1644691152287,0.21911695,42917.0,42916.0,0.11597307]
[1644691152487,0.08032643,42919.0,42916.0,0.11597307]
[1644691152688,0.08093866,42919.0,42916.0,0.11597307]
[1644691153692,0.08032643,42919.0,42916.0,0.11597307]
[1644691154390,0.07450157,42919.0,42916.0,0.11585007]
[1644691155238,0.326979,42918.0,42916.0,0.11585007]
[1644691156341,0.0467,42917.0,42911.0,0.233061]
[1644691156542,0.326979,42916.0,42911.0,0.233061]
[1644691156743,0.373679,42915.0,42911.0,0.233061]
[1644691156939,0.0467,42915.0,42911.0,0.233061]
[1644691157339,0.21550592,42913.0,42911.0,0.233061]
[1644691157539,0.21550592,42913.0,42911.0,0.116532]
[1644691159087,0.47413507,42913.0,42911.0,0.116532]
[1644691159992,0.326979,42912.0,42911.0,0.116532]
[1644691160392,0.326979,42912.0,42908.0,0.00061236]
[1644691160596,0.373679,42912.0,42908.0,0.00061236]
[1644691160892,0.373679,42912.0,42907.0,0.058277]
[1644691161092,0.373679,42912.0,42908.0,0.00061235]
[1644691161294,0.06689397,42911.0,42908.0,0.00061235]
[1644691161494,0.0467,42910.0,42908.0,0.02974935]
[1644691161695,0.373679,42910.0,42908.0,0.02974935]
[1644691162093,0.373679,42910.0,42908.0,0.029137]
[1644691162449,0.373679,42910.0,42907.0,0.058277]
[1644691166049,0.95,42908.0,42897.0,0.2311]
[1644691166292,0.95,42908.0,42896.0,0.05]
[1644691166293,0.373679,42907.0,42896.0,0.05]
[1644691166491,0.373679,42907.0,42897.0,0.18028259]
[1644691166690,0.373679,42907.0,42894.0,0.3]
[1644691166896,0.05,42905.0,42894.0,0.3]
[1644691167094,0.30566501,42903.0,42900.0,0.00036528]
[1644691167294,0.373679,42902.0,42900.0,0.00036528]
[1644691168094,0.18714166,42899.0,42894.0,0.058292]
[1644691168293,0.22762814,42896.0,42895.0,0.058292]
[1644691168496,0.31437571,42896.0,42895.0,0.058292]
[1644691168695,0.31437571,42896.0,42892.0,0.18028259]
[1644691168696,0.64135471,42896.0,42892.0,0.18028259]
[1644691168895,0.65852467,42895.0,42891.0,0.14573]
[1644691169094,0.326979,42894.0,42891.0,0.14573]
[1644691169295,0.373679,42894.0,42891.0,0.14573]
[1644691169597,0.0467,42894.0,42891.0,0.14629876]
[1644691170349,0.326979,42893.0,42891.0,0.14573]
[1644691170749,0.0467,42894.0,42891.0,0.14573]
[1644691170949,0.0467,42894.0,42892.0,0.05829]
[1644691174994,0.83263136,42893.0,42892.0,0.05829]
[1644691175291,0.83263136,42893.0,42891.0,0.116582]
[1644691175491,0.83263136,42893.0,42891.0,0.11715314]
[1644691175692,0.28953231,42892.0,42891.0,0.11715314]
[1644691175892,0.61651131,42892.0,42891.0,0.11715314]
[1644691176092,0.326979,42892.0,42891.0,0.11715314]
[1644691176493,0.326979,42892.0,42891.0,0.116582]
[1644691177743,0.0467,42894.0,42891.0,0.116582]
[1644691178142,0.326979,42893.0,42891.0,0.116582]
[1644691178341,0.326979,42892.0,42891.0,0.116582]
[1644691178542,0.0467,42894.0,42891.0,0.116582]
[1644691179743,0.326979,42893.0,42891.0,0.116582]
[1644691180544,0.0467,42894.0,42891.0,0.116582]
[1644691180744,0.08674757,42896.0,42891.0,0.116582]